Cogmind - Beta 16 @@@ ROGUE MODE // 2026.02.04 @ 04:06:53 Player: Darkfire Result: Destroyed by D-53 Grenadier with Mini Grenade Launcher Performance ------------- Evolutions (0) 0 Regions Visited (2) 400 Robots Destroyed (21) 105 Value Destroyed (595) 595 Prototype IDs (4) 80 Alien Tech Used (0) 0 Bonus (0) 0 TOTAL SCORE: 1180 Bonus ------- None Cogmind --------- Core Integrity 0/250 Matter 202/300 Energy 79/100 System Corruption 2% Temperature Cool (0) Movement Treading (240) Ox1 Location -10/Mines Parts ------- > --- POWER (1) -------- (None) > --- PROPULSION (2) --- Light Treads > --- UTILITY (2) ------ Large Storage Unit Improved Targeting Computer > --- WEAPON (2) ------- Rocket Launcher > --- INVENTORY (15) --- Light Nuclear Core Light Treads Aluminum Leg Aluminum Leg Light Assault Rifle Light Assault Rifle Peak State ------------ > --- POWER ------------ Reinforced Ion Engine > --- PROPULSION ------- Light Treads Light Treads > --- UTILITY ---------- Small Storage Unit Improved Targeting Computer > --- WEAPON ----------- Assault Rifle Light Assault Rifle > --- INVENTORY -------- Ion Engine Light Ion Engine Aluminum Leg Aluminum Leg Medium Storage Unit Light Assault Rifle Rocket Launcher Rocket Launcher [Rating: 10] Favorites ----------- Power Reinforced Ion Engine Engine Reinforced Ion Engine Propulsion Light Treads Treads Light Treads Utility Improved Targeting Computer Storage Large Storage Unit Processor Improved Targeting Computer Weapon Light Assault Rifle Ballistic Gun Light Assault Rifle Launcher Rocket Launcher Build | -11 -10 -10 ------- Run | Yrd Mat Min Slots Evolved . | . . . Power . | . . . Propulsion . | . . . Utility . | . . . Weapon . | . . . Parts Attached 15 | 6 7 2 Power 2 | 1 1 . Engine 2 | 1 1 . Core . | . . . Reactor . | . . . Propulsion 3 | 2 1 . Treads 3 | 2 1 . Leg . | . . . Wheel . | . . . Hover . | . . . Flight . | . . . Utility 4 | 1 3 . Device . | . . . Storage 3 | 1 2 . Processor 1 | . 1 . Hackware . | . . . Protection . | . . . Artifact . | . . . Weapon 6 | 2 2 2 Energy Gun . | . . . Energy Cannon . | . . . Ballistic Gun 4 | 2 1 1 Ballistic Cannon . | . . . Launcher 2 | . 1 1 Special Weapon . | . . . Impact Weapon . | . . . Slashing Weapon . | . . . Piercing Weapon . | . . . Special Melee Weapon . | . . . Unidentified Prototypes . | . . . Parts Lost 6 | . 3 3 Power 1 | . . 1 Propulsion 2 | . 1 1 Utility . | . . . Weapon 3 | . 2 1 Highest Loss Streak 3 | . 3 2 To Critical Strikes . | . . . Average Backups 7 | 2 7 5 Power 1 | . 1 1 Propulsion 3 | 1 3 3 Utility . | . . . Weapon 2 | . 2 1 Tool/Special . | . . . Unused Backups 6 | . 2 4 Power 2 | . 1 1 Propulsion 3 | . . 3 Utility 1 | . 1 . Weapon . | . . . Tool/Special . | . . . Average Slot Usage (%) 95 | . 97 86 Engine 12 | . 14 2 Treads 26 | . 26 27 Storage 14 | . 14 14 Processor 13 | . 13 14 Ballistic Gun 25 | . 25 23 Launcher 2 | . 1 3 Peak Build Rating 10 | 6 10 10 Average Rating 9 | 4 9 8 On Entrance 5 | . 6 10 Avg Prop Armor Cover (%) . | . . . Naked Turns . | . . . Heaviest Build 35 | 13 35 35 Greatest Support 40 | 40 40 40 Greatest Overweight (x) 1 | . 1 . Average Overweight (x) . | . . . Largest Inventory Capacity 15 | 8 15 15 Average Capacity 14 | 7 14 15 Most Carried 10 | 4 10 7 Average Carried 7 | 2 7 5 Final Capacity 15 | 8 15 15 Final Carried 6 | 4 5 6 Class Distribution -------------------- 100% | Mutant Dominant Class ---------------- Mutant | -10/Materials Mutant | -10/Mines Resources | -11 -10 -10 ----------- Run | Yrd Mat Min Matter Collected 538 | 222 286 30 Remotely . | . . . Salvage Created 708 | . 581 127 Parts 41 | . 36 5 Haulers Intercepted 1 | . 1 . Recyclers Shooed . | . . . Parts Field Recycled . | . . . Retrieved Matter . | . . . Parts Self-Destructed . | . . . Prevented . | . . . Parts Restored . | . . . Kills | -11 -10 -10 ------- Run | Yrd Mat Min Combat Hostiles Destroyed 19 | . 14 5 Guns 17 | . 14 3 AOE 2 | . . 2 Classes Destroyed 6 | . 4 2 Hauler 1 | . 1 . Mechanic 1 | . . 1 Watcher 1 | . 1 . Swarmer 5 | . 3 2 Grunt 13 | . 11 2 Assembled 1 | . . 1 Best Kill Streak 6 | . 6 3 Combat Bots Only 5 | . 5 3 Max Kills in Single Turn 2 | . 2 2 Gunslinging 1 | . 1 . Exploded 1 | . . 1 Melee . | . . . Uniques/NPCs Destroyed . | . . . Combat | -11 -10 -10 -------- Run | Yrd Mat Min Hostile Shots Fired 125 | . 77 48 Missed 38 | . 24 14 Hits 87 | . 53 34 Melee 1 | . . 1 Projectile 86 | . 53 33 AOE 5 | . . 5 Critical Strikes 2 | . 1 1 Damage Taken 1290 | . 664 626 Core 285 | . 115 170 Absorbed by Shields . | . . . Core Remaining (%) 100 | 100 . . Volleys Fired 64 | 1 50 13 Largest 2 | 2 2 2 Hottest 53 | 40 53 53 Shots Fired 116 | 2 95 19 Gun 110 | 2 93 15 Cannon . | . . . Launcher 6 | . 2 4 Special . | . . . Kinetic 110 | 2 93 15 Thermal . | . . . Explosive 6 | . 2 4 Electromagnetic . | . . . Robot Hit Streak 17 | . 17 2 Robot Miss Streak 5 | . 3 5 Penetration Max . | . . . Secondary Targets 1 | . 1 . Max Gunslinging Chain 1 | . 1 . Shots Hit Robots 77 | . 70 7 Core Hits 43 | . 30 13 Critical Kills 1 | . 1 . Critical Parts Destroyed . | . . . Critical Strikes 1 | . 1 . Destroy 1 | . 1 . Melee Attacks . | . . . Impact . | . . . Slashing . | . . . Piercing . | . . . Sneak Attacks . | . . . Combat Hostiles . | . . . Follow-up Attacks . | . . . Damage Inflicted 1018 | . 755 263 Guns 760 | . 706 54 Cannons . | . . . Explosions 258 | . 49 209 Melee . | . . . Ramming . | . . . Kinetic 760 | . 706 54 Thermal . | . . . Explosive 258 | . 49 209 Electromagnetic . | . . . Impact . | . . . Slashing . | . . . Piercing . | . . . Highest Corruption 2 | . 2 2 Average Corruption 2 | . 2 2 Corruption Purged . | . . . Corruption Blocked . | . . . Effects 16 | . 13 3 Message Errors 3 | . 2 1 Matter Fused 2 | . 1 1 Energy Discharges 3 | . 3 . Parts Rejected 2 | . 1 1 Data Loss (minor) 3 | . 3 . Data Loss (major) 1 | . 1 . Alerts 1 | . 1 . Weapon Failures 1 | . 1 . Overload Shots . | . . . Overflow Damage 9 | . . 9 Projectiles . | . . . Explosions 9 | . . 9 Melee . | . . . Knockbacks . | . . . Impact . | . . . Kinetic . | . . . Secondary . | . . . Self-Inflicted Damage 27 | . . 27 Shots 1 | . . 1 Rammed . | . . . Targets Rammed . | . . . Kicked . | . . . Crushed . | . . . Highest Temperature 40 | . 40 30 Average Temperature 13 | . 13 11 Received Heat Transfer 450 | . 378 72 Siege Activations . | . . . Martial Activations . | . . . Shielding Activations . | . . . Robots Disrupted . | . . . Combat Hostiles . | . . . Robots Corrupted . | . . . Combat Hostiles . | . . . Parts Fried . | . . . Impact Corruptions . | . . . Robots Melted . | . . . Combat Hostiles . | . . . Parts Melted 1 | . . 1 Heat Transferred . | . . . Parts Sabotaged . | . . . Parts Stolen . | . . . Parts Stripped . | . . . Power Chain Reactions . | . . . Alert | -11 -10 -10 ------- Run | Yrd Mat Min Maximum Alert Level . | . . . Low Security (%) 100 | 100 100 100 Level 1 . | . . . Level 2 . | . . . Level 3 . | . . . Level 4 . | . . . Level 5 . | . . . High Security . | . . . Max Security . | . . . Peak Influence 143 | . 143 118 Initial 25 | . . 25 Average 59 | . 60 70 Influence Increases 603 | . 471 132 Destroy 0b10 Robot/C 360 | . 280 80 Destroy 0b10 Robot/NC 15 | . 10 5 Destroy Leader 94 | . 74 20 Successful Hack 31 | . 31 . Disable Machine 30 | . 30 . Destroy Structure 73 | . 46 27 Influence Decreases 596 | . 405 191 Entered New Map 41 | . . 41 Time Decay 495 | . 395 100 Lost Part 40 | . 10 30 Lost Ally 20 | . . 20 Squads Dispatched 6 | . 5 1 Investigation 1 | . 1 . Extermination . | . . . Reinforcement 4 | . 4 . Assault 1 | . . 1 Garrison . | . . . Intercept . | . . . Searches Triggered . | . . . Construction Impeded . | . . . Haulers Reinforced . | . . . Active Scanning Responses . | . . . Cargo Convoy Interrupts . | . . . Stealth | -11 -10 -10 --------- Run | Yrd Mat Min Distress Signals . | . . . Communications Jammed . | . . . Distress Signals . | . . . Times Spotted 31 | . 20 11 Peak Tracking Total 5 | . 4 5 Tactical Retreats . | . . . Traps | -11 -10 -10 ------- Run | Yrd Mat Min Traps Triggered 1 | . 1 . Indirectly . | . . . Trap Hack Attempts . | . . . Triggered . | . . . Disarmed . | . . . Reprogrammed . | . . . Reused . | . . . Traps Extracted . | . . . Installed . | . . . Triggered . | . . . Machines | -11 -10 -10 ---------- Run | Yrd Mat Min Machines Disabled 2 | . 2 . Max in Single Turn 2 | . 2 . Machines Repaired . | . . . Machines Dismantled . | . . . Machines Sabotaged . | . . . Overloaded Fab Kills . | . . . Hacking | -11 -10 -10 --------- Run | Yrd Mat Min Machines Accessed 4 | . 4 . Terminals 3 | . 3 . Fabricators . | . . . Repair Stations . | . . . Recycling Units 1 | . 1 . Scanalyzers . | . . . Garrison Access . | . . . Total Hacks 14 | . 14 . Successful 12 | . 12 . Failed 2 | . 2 . Catastrophic . | . . . Database Lockouts . | . . . Manual 3 | . 3 . Terminals 8 | . 8 . Fabricators . | . . . Repair Stations . | . . . Recycling Units 6 | . 6 . Scanalyzers . | . . . Garrison Access . | . . . Terminal Hacks 5 | . 5 . Prototype ID Bank 2 | . 2 . Locate Traps 1 | . 1 . Transport Status 1 | . 1 . Hauler Manifests 1 | . 1 . Fabricator Hacks . | . . . Repair Station Hacks . | . . . Recycling Unit Hacks 5 | . 5 . Recycle Component 2 | . 2 . Process 1 | . 1 . Report Inventory 2 | . 2 . Scanalyzer . | . . . Garrison Access Hacks . | . . . Unauthorized Hacks 2 | . 2 . Terminals 2 | . 2 . Assimilate 2 | . 2 . Fabricators . | . . . Repair Stations . | . . . Recycling Units . | . . . Scanalyzers . | . . . Garrison Access . | . . . Data Cores Recovered . | . . . Used . | . . . Hacking Detections 3 | . 3 . Full Trace Events 2 | . 2 . Feedback Events . | . . . Feedback Blocked . | . . . Robot Schematics Acquired . | . . . Robots Built . | . . . Authchips . | . . . Time . | . . . Total Robot Build Rating . | . . . Part Schematics Acquired . | . . . Parts Built . | . . . Authchips . | . . . Time . | . . . Total Part Build Rating . | . . . Part Studies Acquired . | . . . Parts Repaired . | . . . Time . | . . . Parts Recycled 2 | . 2 . Recycled Matter 215 | . 215 . Retrieved Matter . | . . . Retrieved Components . | . . . Parts Scanalyzed . | . . . Part Schematics Acquired . | . . . Parts Damaged . | . . . Bothacking | -11 -10 -10 ------------ Run | Yrd Mat Min Used RIF Installer . | . . . Robots Hacked . | . . . Non-combat . | . . . Combat . | . . . Robot Hacks Applied . | . . . Relay Couplers Released . | . . . Fabnet Peak Effective % . | . . . Robots Rewired . | . . . Allies Hacked . | . . . Hacks Repelled . | . . . Allies | -11 -10 -10 -------- Run | Yrd Mat Min Total Allies 1 | . . 1 Largest Group 1 | . . 1 Highest-Rated Group 31 | . . 31 Highest-Rated Ally 31 | . . 31 Total Orders . | . . . Ally Attacks . | . . . Total Damage . | . . . Kills . | . . . Allies Corrupted . | . . . Allies Melted . | . . . Intel | -11 -10 -10 ------- Run | Yrd Mat Min Active Infowar (turns) . | . . . Robot Analysis Total . | . . . Derelict Logs Recovered . | . . . Drone Launches . | . . . Drone Recoveries . | . . . Exploration | -11 -10 -10 ------------- Run | Yrd Mat Min Turns Passed 1571 | 71 1284 216 Spaces Moved 638 | 40 489 109 Core 9 | 9 . . Treads 629 | 31 489 109 Legs . | . . . Wheels . | . . . Hover . | . . . Flight . | . . . Fastest Speed 50 | 50 160 160 Average Speed 167 | 135 171 160 Slowest Speed 240 | 160 240 160 Overloaded Moves . | . . . Propulsion Burnouts . | . . . Robots Hopped . | . . . Potential Cave-ins . | . . . Cave-ins Triggered . | . . . Exploration Rate (%) 32 | 4 71 23 Regions Visited 2 Branch Regions 1 Pre-discovered Areas . | . . . Known Exits Taken . | . . . Unknown Exits Taken 2 | 1 1 . Scrap Searched . | . . . Spaces Dug . | . . . Terrain Destroyed 98 | . 56 42 Melee . | . . . Projectile . | . . . AOE 98 | . 56 42 Terrain Rammed . | . . . Walls Destroyed . | . . . Machines Disabled . | . . . Actions | -11 -10 -10 --------- Run | Yrd Mat Min Total 1035 | 54 848 133 Wait 294 | . 290 4 Move 636 | 39 488 109 Hop . | . . . Pick Up 18 | 8 9 1 Fast Attach 5 | 2 1 2 Attach 8 | 4 4 . Detach 1 | . . 1 Swap 5 | . 3 2 Drop 4 | . 3 1 Fire 64 | 1 50 13 Melee . | . . . Ram . | . . . Kick . | . . . Crush . | . . . Escape Stasis . | . . . Rewire . | . . . Trap . | . . . Miscellaneous . | . . . Route ------- -11/Scrapyard -10/Materials (discovered 4 exits: [*Mat x2] / [*Min] / [*Sub]) -10/Mines History --------- Turn | Location | Event 8 | -11/Scrapyard | Discovered new exit (range 15) 72 | -11/Scrapyard | Entered Materials 207 | -10/Materials | Discovered new exit (range 16) 306 | -10/Materials | Build established: Mutant 395 | -10/Materials | Discovered new exit (range 10) 572 | -10/Materials | Derelicts attacked the area 682 | -10/Materials | Discovered new exit (range 8) 735 | -10/Materials | Discovered new exit (range 15) 1205 | -10/Materials | Lost 3 parts (1n2w) 1356 | -10/Materials | Entered Mines 1361 | -10/Mines | Met a Derelict bent on vengeance 1365 | -10/Mines | Core integrity fell below 50% 1465 | -10/Mines | Met a Derelict testing a Signal Generator 1492 | -10/Mines | Assembled infested the area 1497 | -10/Mines | Assisted by a Guerilla fighting off Assembled 1568 | -10/Mines | Core integrity fell below 20% 1572 | -10/Mines | Destroyed by D-53 Grenadier with Mini Grenade Launcher Last Messages --------------- U-05 Engineer builds a Wall. G-34 Mercenary unfolds itself. M-13 Machinist unfolds itself. G-34 Mercenary destroyed. U-05 Engineer builds a Wall. GZ%&E 0L=2#CD,7FMBMO><58#JRAZ&WEFQ2 T-07 Excavator destroyed. R-06 Scavenger suffers critical hit (Destroy). 63-K1T(h) destroyed. as-25274 destroyed. as-81938 destroyed. Lgt. Treads destroyed. K-01 Serf collects debris. M-13 Machinist repairs K-01 Serf. Rocket Launcher destroyed. Destroyed Lgt. Ion Engine. M-13 Machinist destroyed. The unstable cave ceiling collapses. 9 Matter crushed. K-01 Serf destroyed. Map ----- +----------------------------------------------------+ | ?????????????????????????????????????# #???? | | ??????????????????????????????????### & #???? | | ?????????????????????????????????## ##??? | | ?????????????????????????##??????# #??? | | ?????????????????????#### #####??# #??? | | ??????????????????#### #### ##?## ### #???? | | ??????????????????# #### #### #???????????? | | ??????????????????# # # #???????????? | | ??????????????????# % ##????????### | | ??????????????????## # ##????### # | | ???????????????????## ### #???# | | ????????????????????# % #### | | ????????????????????# [ ## | | ????????????????????# ##### | | ????????????????????### %##???##### | | ??????????????????????# #????????## | | ??????????????????????# #?????????## ### | | ?????????????#?#??#???# #??????????## ##??? | | ?????????????#=# ## ??# u#???????????## #???? | | ?????????????#! ?# ##???????????# #???? | | ????????????##! ## ##??????????# | | ????????????# $= ###????????## ##### | | ????????????# %%d [ ###???????### ##???? | | ?????????????# d = = #?????????####????? | | ?????????????# ###???????????????? | | ?????????????# @ #?????????? | | ?????????????????# # #?????????? | | ???????????????????## ######???????????? | | ????????????????????# ###????????????????? | | ????????????????????## ##??????????????????? | | ?????????????????????## ######???????????????????? | | ??????????????????????##?????????????????????????? | | ?????????????????????????????????????????????????? | | ?????????????????????????????????????????????????? | | ?????????????????????????????????????????????????? | | ?????????????????????????????????????????????????? | | ?????????????????????????????????????????????????? | | ?????????????????????????????????????????????????? | | ?????????????????????????????????????????????????? | | ?????????????????????????????????????????????????? | | ?????????????????????????????????????????????????? | | ?????????????????????????????????????????????????? | | | | | | | | | | | | | | | | | +----------------------------------------------------+ Best States ------------- Heat Dissipation 25 Energy Generation 12 Energy Capacity 265 Matter Stores 300 Matter Capacity 300 Sight Range 16 Terrain Scan Density 10 Evasion (%) 50 Targeting Accuracy 6 Recoil Reduction 2 Item Schematics ----------------- None Robot Schematics ------------------ None Fabricated ------------ Nothing Repaired ---------- Nothing Studied --------- None Alien Tech Used ----------------- None Achievements -------------- True Hacker Challenges ------------ None Game ------ Seed DerelictAlloyChainsaw Manual? 0 Play Time 00:16:25 Cumulative 8.9 hours Start 2026.02.04 @ 03:52:34 End 2026.02.04 @ 04:06:53 Sessions 1 Manual Loads 0 Difficulty Rogue Special Mode None Game No. 10 Rogue 10 Adventurer 0 Explorer 0 Win Type - Total 0 Types 0/0/0/0/0/0/0/0/0/0 Lore% 8 Gallery% 13 Achievement% 13 Wizard Run 0 Options --------- Layout 1 ASCII 0 Keyboard 0 Movement Mouse Keybinds 0 Fullscreen 2 Font 24/Smallcaps Map View 76x35 Zoom Use 0% Tactical HUD 0 Map Filters NONE Filters NONE Steam 1 RUN: c45cefa2-6b19-463d-9f86-5df6a35f8039